fUST/lending_fUST_20250826
["ID","MTS","AMOUNT","RATE_DAILY","PERIOD"]
[381368261,1756156244423,-562.65,0.00041095,30]
[381368265,1756156244432,-2283.13,0.00041095,30]
[381368269,1756156244442,-1413.81,0.00041095,30]
[381368272,1756156244451,-1142.7,0.00041095,30]
[381368275,1756156244461,-480.0,0.00041095,30]
[381368277,1756156244470,-480.0,0.00041095,30]
[381368280,1756156244480,-960.04,0.00041095,30]
[381368283,1756156244489,-725.19,0.00041095,30]
[381368286,1756156244499,-3729.06,0.00041095,30]
[381368288,1756156244508,-771.93,0.00041095,30]
[381368291,1756156244518,-480.0,0.00041095,30]
[381368293,1756156244527,-480.0,0.00041095,30]
[381368295,1756156244539,-480.0,0.00041095,30]
[381368298,1756156244549,-480.0,0.00041095,30]
[381368300,1756156244558,-713.88,0.00041095,30]
[381368302,1756156244568,-901.49,0.00041095,30]
[381368304,1756156244577,-666.1,0.00041095,30]
[381368306,1756156244587,-1996.1,0.00041095,30]
[381368309,1756156244596,-480.0,0.00041095,30]
[381368310,1756156244606,-480.0,0.00041095,30]
[381368311,1756156244615,-781.08,0.00041095,30]
[381368312,1756156244624,-488.58,0.00041095,30]
[381368313,1756156244633,-447.88915207,0.00041095,30]
[381368314,1756156244653,-480.0,0.00041095,30]
[381368315,1756156244665,-682.45,0.00041095,30]
[381368316,1756156244677,-480.0,0.00041095,30]
[381368317,1756156244688,-639.77,0.00041095,30]
[381368318,1756156244698,-3357.02,0.00041095,30]
[381368319,1756156244709,-639.43,0.00041095,30]
[381368320,1756156244719,-1044.38,0.00041095,30]
[381368321,1756156244730,-480.0,0.00041095,30]
[381368322,1756156244741,-480.0,0.00041095,30]
[381368323,1756156244753,-1001.53,0.00041095,30]
[381368324,1756156244763,-480.0,0.00041095,30]
[381368325,1756156244774,-651.77,0.00041095,30]
[381368326,1756156244788,-480.0,0.00041095,30]
[381368327,1756156244798,-558.98,0.00041095,30]
[381368328,1756156244809,-543.56,0.00041095,30]
[381368329,1756156244819,-480.0,0.00041095,30]
[381368330,1756156244829,-480.0,0.00041095,30]
[381368331,1756156244840,-480.0,0.00041095,30]
[381368332,1756156244850,-1944.68,0.00041095,30]
[381368333,1756156244861,-480.0,0.00041095,30]
[381368334,1756156244871,-480.0,0.00041095,30]
[381368335,1756156244882,-694.43,0.00041095,30]
[381368336,1756156244892,-480.0,0.00041095,30]
[381368337,1756156244903,-480.0,0.00041095,30]
[381368338,1756156244913,-1027.12,0.00041095,30]
[381368339,1756156244923,-950.8,0.00041095,30]
[381368340,1756156244934,-604.52,0.00041095,14]
[381368341,1756156244944,-499.72,0.00041095,30]
[381368342,1756156244954,-480.0,0.00041095,30]
[381368343,1756156244964,-480.0,0.00041095,30]
[381368344,1756156244975,-907.06,0.00041095,30]
[381368345,1756156244984,-480.0,0.00041095,30]
[381368346,1756156244994,-1147.13,0.00041095,30]
[381368347,1756156245004,-810.61,0.00041095,30]
[381368348,1756156245014,-969.17,0.00041095,30]
[381368349,1756156245024,-599.15,0.00041095,30]
[381368350,1756156245037,-358.2654152,0.00041095,30]
[381368351,1756156245047,-487.87,0.00041095,30]
[381368352,1756156245057,-480.0,0.00041095,30]
[381368353,1756156245067,-696.37,0.00041095,30]
[381368354,1756156245077,-480.0,0.00041095,30]
[381368355,1756156245087,-480.0,0.00041095,30]
[381368356,1756156245097,-480.0,0.00041095,30]
[381368357,1756156245107,-766.27,0.00041095,30]
[381368358,1756156245116,-480.0,0.00041095,30]
[381368359,1756156245126,-499.02,0.00041095,30]
[381368360,1756156245136,-480.0,0.00041095,30]
[381368361,1756156245146,-1832.51,0.00041095,30]
[381368362,1756156245156,-585.47,0.00041095,30]
[381368363,1756156245167,-480.0,0.00041095,30]
[381368364,1756156245177,-1874.67,0.00041095,30]
[381368365,1756156245187,-480.0,0.00041095,30]
[381368366,1756156245197,-480.0,0.00041095,30]
[381368367,1756156245207,-977.47,0.00041095,30]
[381368368,1756156245218,-1374.15,0.00041095,30]
[381368369,1756156245228,-480.0,0.00041095,30]
[381368370,1756156245238,-1113.21,0.00041095,30]
[381368371,1756156245248,-480.0,0.00041095,30]
[381368372,1756156245258,-516.15,0.00041095,30]
[381368373,1756156245268,-657.42,0.00041095,30]
[381368374,1756156245278,-923.51,0.00041095,30]
[381368375,1756156245292,-1626.13,0.00041095,30]
[381368376,1756156245302,-558.59,0.00041095,30]
[381368377,1756156245312,-480.0,0.00041095,30]
[381368378,1756156245323,-805.24,0.00041095,30]
[381368379,1756156245334,-480.0,0.00041095,30]
[381368380,1756156245344,-816.85,0.00041095,30]
[381368381,1756156245354,-808.79,0.00041095,30]
[381368382,1756156245363,-1050.27,0.00041095,30]
[381368383,1756156245373,-1417.82,0.00041095,30]
[381368384,1756156245384,-151.0,0.00041095,30]
[381368385,1756156245394,-480.0,0.00041095,30]
[381368386,1756156245403,-1033.11,0.00041095,30]
[381368387,1756156245413,-480.0,0.00041095,30]
[381368388,1756156245423,-480.0,0.00041095,30]
[381368389,1756156245433,-480.0,0.00041095,30]
[381368390,1756156245442,-151.0,0.00041095,30]
[381368391,1756156245454,-975.02,0.00041095,30]
[381368392,1756156245464,-639.38,0.00041095,30]
[381368393,1756156245474,-480.0,0.00041095,30]
[381368394,1756156245484,-854.66,0.00041095,30]
[381368395,1756156245493,-480.0,0.00041095,30]
[381368396,1756156245503,-789.3,0.00041095,30]
[381368397,1756156245513,-758.77,0.00041095,30]
[381368398,1756156245523,-503.47,0.00041095,30]
[381368399,1756156245537,-629.13,0.00041095,30]
[381368400,1756156245547,-632.87,0.00041095,30]
[381368401,1756156245556,-480.0,0.00041095,30]
[381368402,1756156245566,-480.0,0.00041095,30]
[381368403,1756156245576,-480.0,0.00041095,30]
[381368404,1756156245586,-480.0,0.00041095,30]
[381368405,1756156245595,-480.0,0.00041095,30]
[381368406,1756156245605,-480.0,0.00041095,30]
[381368407,1756156245615,-480.0,0.00041095,30]
[381368408,1756156245624,-2873.42,0.00041095,30]
[381368409,1756156245634,-480.0,0.00041095,30]
[381368410,1756156245644,-480.0,0.00041095,30]
[381368411,1756156245654,-965.96,0.00041095,30]
[381368412,1756156245664,-480.0,0.00041095,30]
[381368413,1756156245675,-558.37,0.00041095,30]
[381368414,1756156245687,-480.0,0.00041095,30]
[381368415,1756156245697,-480.0,0.00041095,30]
[381368416,1756156245707,-1450.72,0.00041095,30]
[381368417,1756156245716,-151.0,0.00041095,30]
[381368418,1756156245726,-1815.22,0.00041095,30]
[381368419,1756156245736,-480.0,0.00041095,30]
[381368420,1756156245745,-592.89,0.00041095,30]
[381368421,1756156245756,-480.0,0.00041095,30]
[381368422,1756156245766,-1000.0,0.00041095,30]
[381368423,1756156245777,-1763.85,0.00041095,30]
[381368424,1756156245791,-480.0,0.00041095,30]
[381368425,1756156245800,-480.0,0.00041095,30]
[381368426,1756156245810,-480.0,0.00041095,30]
[381368427,1756156245819,-480.0,0.00041095,30]
[381368428,1756156245830,-1356.01,0.00041095,30]
[381368429,1756156245840,-480.0,0.00041095,30]
[381368430,1756156245850,-539.45,0.00041095,30]
[381368431,1756156245860,-2181.04,0.00041095,30]
[381368432,1756156245870,-480.0,0.00041095,30]
[381368433,1756156245880,-1516.05,0.00041095,30]
[381368434,1756156245890,-46.50386057,0.00041095,30]
[381368436,1756156246223,-1000.29613943,0.00041095,30]
[381368437,1756156246298,-480.0,0.00041095,30]
[381368438,1756156246307,-480.0,0.00041095,30]
[381368439,1756156246316,-480.0,0.00041095,30]
[381368440,1756156246325,-480.0,0.00041095,30]
[381368441,1756156246335,-836.46,0.00041095,30]
[381368442,1756156246344,-646.42,0.00041095,30]
[381368444,1756156246353,-480.67,0.00041095,30]
[381368445,1756156246363,-263.29070393,0.00041095,30]
[381368446,1756156246375,-480.0,0.00041095,30]
[381368447,1756156246385,-480.0,0.00041095,30]
[381368449,1756156246395,-1001.67,0.00041095,30]
[381368450,1756156246404,-480.0,0.00041095,30]
[381368451,1756156246414,-1108.1,0.00041095,30]
[381368452,1756156246423,-480.0,0.00041095,30]
[381368453,1756156246433,-1282.37,0.00041095,30]
[381368454,1756156246442,-81.52825784,0.00041095,30]
[381368476,1756156247111,-398.47174216,0.00041095,30]
[381368477,1756156247121,-1270.04728075,0.00041095,30]
[381368478,1756156247152,-30.81347619,0.00041095,30]
[381368479,1756156247927,-409.0,0.00039685,2]
[381368480,1756156247937,-430.4300001,0.00041095,30]
[381368481,1756156247949,-250.52924296,0.00041095,30]
[381368482,1756156247959,-480.0,0.00041095,30]
[381368483,1756156247969,-1005.98,0.00041095,30]
[381368484,1756156247979,-2109.54,0.00041095,30]
[381368485,1756156247989,-518.61,0.00041095,30]
[381368486,1756156247998,-3290.02,0.00041095,30]
[381368487,1756156248008,-516.68,0.00041095,30]
[381368488,1756156248018,-480.0,0.00041095,30]
[381368489,1756156248027,-752.5,0.00041095,30]
[381368490,1756156248039,-770.03,0.00041095,30]
[381368491,1756156248049,-480.0,0.00041095,30]
[381368492,1756156248060,-480.0,0.00041095,30]
[381368493,1756156248070,-483.68,0.00041095,30]
[381368494,1756156248080,-480.0,0.00041095,30]
[381368495,1756156248091,-679.09,0.00041095,30]
[381368496,1756156248101,-321.94075704,0.00041095,30]
[381368497,1756156248118,-2931.50924296,0.00041095,30]
[381368498,1756156248128,-480.0,0.00041095,30]
[381368499,1756156248138,-422.15046608,0.00041095,30]
[381368500,1756156254054,-500.0,0.00031507,2]
[381368501,1756156254080,-500.0,0.00031507,2]
[381368502,1756156254104,-437.61238891,0.00031507,2]
[381368503,1756156254128,-1483.51677865,0.0003493,2]
[381368504,1756156254151,-1483.51677865,0.00036691,2]
[381368505,1756156254176,-500.0,0.00038356,14]
[381368506,1756156254200,-500.0,0.0003863,14]
[381368507,1756156254223,-176.26,0.00038835,120]
[381368508,1756156254247,-500.0,0.00038904,14]
[381368509,1756156254270,-500.0,0.00039178,14]
[381368510,1756156254295,-500.0,0.00039452,14]
[381368511,1756156259066,-1483.51677865,0.00038452,2]
[381368512,1756156261700,-610.27,0.00039,30]
[381368513,1756156274673,-160.0,0.00030496,2]
[381368514,1756156285078,-151.0,0.00039,30]
[381368515,1756156288544,-160.0,0.00030496,2]
[381368518,1756156303114,-638.51,0.000388,30]
[381368519,1756156331262,-500.0,0.00037989,120]
[381368520,1756156352848,-500.0,0.00037989,15]
[381368521,1756156354914,-500.0,0.00038355,7]
[381368522,1756156358821,-500.0,0.00039073,31]
[381368523,1756156389185,150.0,0.00030004,120]
[381368525,1756156407731,6021.10012013,0.00030496,7]
[381368526,1756156410424,528.05118951,0.00030496,7]
[381368527,1756156481538,1000.0,0.00031616,2]
[381368528,1756156482139,584.14,0.00031616,2]
[381368529,1756156505594,-500.0,0.00038356,14]
[381368532,1756156545010,-1117.18,0.00037979,120]
[381368533,1756156549475,-199.0,0.00037879,120]
[381368535,1756156666963,-1309.4238277,0.00038359,2]
[381368541,1756156717772,-500.0,0.0003863,14]
[381368542,1756156717796,-500.0,0.00038904,14]
[381368543,1756156717817,-138.51,0.00039073,31]
[381368544,1756156717840,-500.0,0.00039177,7]
[381368545,1756156717862,-500.0,0.00039178,14]
[381368546,1756156717890,-638.51,0.00039347,32]
[381368547,1756156717911,-634.65658828,0.00039452,14]
[381368548,1756156717934,-3257.45302252,0.00039456,2]
[381368549,1756156718792,-3411.67658828,0.00039456,2]
[381368553,1756156749873,-500.0,0.00038355,7]
[381368554,1756156752336,-500.0,0.00039177,7]
[381368555,1756156759847,-4787.2202643,0.00038286,2]
[381368556,1756156868207,-558.69,0.000388,30]
[381368557,1756156870984,-309.122575,0.0003801,2]
[381368566,1756157003036,-481.76687335,0.00039073,31]
[381368568,1756157032660,-76.92312665,0.00039073,31]
[381368569,1756157032683,-404.8437467,0.00039347,32]
[381368570,1756157033750,-153.8462533,0.00039347,32]
[381368577,1756157147131,-1020.65213974,0.00038683,2]
[381368578,1756157148133,-2198.66931506,0.00038683,2]
[381368807,1756157230917,-558.69,0.00039621,33]
[381368808,1756157230941,-400.0,0.00039884,5]
[381368809,1756157230962,-1600.0,0.00039884,5]
[381368810,1756157230982,-973.0,0.00039885,2]
[381368811,1756157231003,-2144.48904212,0.00039885,2]
[381368813,1756157250629,45000.0,0.00031735,20]
[381368814,1756157251107,-10.51095788,0.00039885,2]
[381368815,1756157251126,-637.0,0.00039885,2]
[381368816,1756157251146,-409.0,0.00039885,2]
[381368817,1756157251166,-433.32048991,0.00039895,34]
[381369040,1756157282053,38046.79093488,0.0003199,2]
[381369100,1756157284090,400.0,0.00031734,2]
[381369107,1756157284329,3836.05184171,0.00032,2]
[381369129,1756157285221,500.64224986,0.00031773,5]
[381369186,1756157287913,323.93,0.000318,7]
[381369217,1756157289064,500.0,0.00031773,5]
[381369221,1756157289163,500.0,0.00031773,5]
[381369291,1756157294605,500.0,0.00031773,5]
[381369292,1756157295579,901.9,0.00031725,10]
[381369293,1756157296252,-901.9,0.00039,30]
[381369294,1756157297282,-11422.39740495,0.00039,30]
[381369295,1756157301428,500.0,0.00031773,5]
[381369296,1756157301972,151.0,0.00031773,5]
[381369297,1756157301999,349.0,0.00031773,5]
[381369298,1756157302412,500.0,0.00031773,5]
[381369299,1756157302462,500.0,0.00031773,5]
[381369300,1756157303291,500.0,0.00031773,5]
[381369301,1756157304063,500.0,0.00031773,5]
[381369302,1756157304338,500.0,0.00031773,5]
[381369303,1756157304394,500.0,0.00031773,5]
[381369304,1756157305256,502.6290904,0.00031773,3]
[381369325,1756157307503,500.0,0.00031773,5]
[381369369,1756157309572,931.96,0.00031725,10]
[381369431,1756157311824,500.0,0.00031734,2]
[381369433,1756157311862,500.0,0.00031734,2]
[381369435,1756157311892,181.299035,0.00031734,2]
[381369437,1756157311927,500.0,0.00031734,2]
[381369439,1756157311981,500.0,0.00031734,2]
[381369444,1756157312156,500.0,0.00031734,2]
[381369449,1756157312292,500.0,0.00031734,2]
[381369454,1756157312455,500.0,0.00031734,2]
[381369456,1756157312490,500.0,0.00031734,2]
[381369459,1756157312535,500.0,0.00031734,2]
[381369460,1756157312572,500.0,0.00031734,2]
[381369464,1756157312670,500.0,0.00031734,2]
[381369466,1756157312813,314.26692923,0.00031734,2]
[381369476,1756157313524,500.0,0.00031734,2]
[381369480,1756157313645,4006.90997936,0.00031,120]
[381369482,1756157313702,-123008.755909,0.00031735,20]
[381369551,1756157318346,1888.04038131,0.00028,120]
[381369552,1756157319024,488.06202399,0.00031734,2]
[381369553,1756157319406,167.9349929,0.00022,10]
[381369554,1756157321389,2516.62475274,0.00022,10]
[381369555,1756157322678,867.27,0.00031725,10]
[381369580,1756157324240,452.999998,0.00021,2]
[381369615,1756157325581,169.586895,0.00025,5]
[381369651,1756157333672,500.0,0.00031734,2]
[381369652,1756157333704,500.0,0.00031734,2]
[381369653,1756157333735,500.0,0.00031734,2]
[381369654,1756157333778,500.0,0.00031734,2]
[381369655,1756157333810,500.0,0.00031734,2]
[381369656,1756157333841,245.08416597,0.00031734,2]
[381369657,1756157333878,500.0,0.00031734,2]
[381369658,1756157333924,500.0,0.00031734,2]
[381369659,1756157333963,500.0,0.00031734,2]
[381369660,1756157334004,500.0,0.00031734,2]
[381369661,1756157334041,500.0,0.00031734,2]
[381369662,1756157334080,500.0,0.00031734,2]
[381369663,1756157334339,500.0,0.00031734,2]
[381369664,1756157334379,500.0,0.00031734,2]
[381369665,1756157334420,500.0,0.00031734,2]
[381369666,1756157334476,500.0,0.00031734,2]
[381369667,1756157334522,500.0,0.00031734,2]
[381369668,1756157334553,500.0,0.00031734,2]
[381369669,1756157334588,500.0,0.00031734,2]
[381369670,1756157334618,500.0,0.00031734,2]
[381369671,1756157334649,500.0,0.00031734,2]
[381369672,1756157334680,500.0,0.00031734,2]
[381369673,1756157334733,500.0,0.00031734,2]
[381369674,1756157334769,500.0,0.00031734,2]
[381369675,1756157334808,646.4186072,0.00031734,2]
[381369676,1756157334840,500.0,0.00031734,2]
[381369677,1756157334887,500.0,0.00031734,2]
[381369678,1756157334921,615.60457806,0.00031734,2]
[381369679,1756157334953,500.0,0.00031734,2]
[381369680,1756157334988,500.0,0.00031734,2]
[381369681,1756157335026,500.0,0.00031734,2]
[381369682,1756157335057,500.0,0.00031734,2]
[381369683,1756157335128,500.0,0.00031734,2]
[381369684,1756157335179,500.0,0.00031734,2]
[381369685,1756157335236,500.0,0.00031734,2]
[381369686,1756157335279,315.98166804,0.00031734,2]
[381369687,1756157335377,265.80091332,0.00031734,2]
[381369688,1756157335407,495.70691557,0.00031734,2]
[381369708,1756157342448,400.0,0.00031734,2]
[381369717,1756157343666,500.0,0.00031773,5]
[381369718,1756157344026,6021.10012013,0.00030496,7]
[381369725,1756157351015,722.72,0.00031725,10]
[381369726,1756157352697,658.57,0.00031725,3]
[381369727,1756157355463,150.71364408,0.00025205,2]
[381369728,1756157356464,151.71174768,0.00026465,2]
[381369729,1756157357453,152.70985128,0.00027726,2]
[381369730,1756157358452,153.70795489,0.00028986,2]
[381369731,1756157359447,154.70605849,0.00030246,2]
[381369732,1756157360436,155.70416209,0.00031506,2]
[381369733,1756157361583,602.27,0.00031725,10]
[381369734,1756157363626,329.29,0.00031725,3]
[381369735,1756157364564,11403.32056074,0.00029254,2]
[381369750,1756157368348,160.0,0.00031735,2]
[381369751,1756157368398,29549.58,0.000318,7]
[381369752,1756157371608,200.0,0.00031735,10]
[381369753,1756157371961,200.0,0.00031735,10]
[381369754,1756157372942,209.904055,0.00031735,10]
[381369755,1756157374466,164.64,0.00031725,3]
[381369756,1756157375049,501.89,0.00031725,10]
[381369770,1756157376078,2243.67458344,0.0003199,2]
[381369771,1756157379136,166.957647,0.00013699,2]
[381369893,1756157403067,162.74,0.00029195,15]
[381369894,1756157403139,162.74,0.00029295,15]
[381369897,1756157403327,162.74,0.00029395,15]
[381369898,1756157403392,162.74,0.00029495,15]
[381369899,1756157403534,162.74,0.00029595,15]
[381369900,1756157403580,162.74,0.00029695,15]
[381369901,1756157403617,162.74,0.00029795,15]
[381369902,1756157403743,162.74,0.00029895,15]
[381369903,1756157403800,162.79481879,0.00029995,15]
[381369905,1756157405082,162.74,0.00029095,15]
[381369907,1756157405448,162.74,0.00028995,15]
[381369942,1756157435046,-159.0,0.00031,120]
[381369943,1756157435057,-166.957647,0.00031311,2]
[381369944,1756157435067,-141.14165299,0.00031635,2]
[381369952,1756157437798,-716.86236387,0.00031635,2]
[381369953,1756157437807,-173.30378635,0.00031635,2]
[381369954,1756157437817,-466.49,0.00031725,3]
[381369955,1756157437826,-233.24,0.00031725,3]
[381369956,1756157437835,-490.27652283,0.00031725,3]
[381369957,1756157437854,-209.49347717,0.00031725,3]
[381369958,1756157437864,-418.24,0.00031725,10]
[381369959,1756157437873,-222.0,0.00031734,3]
[381369960,1756157437882,-161.95287647,0.00031734,3]
[381369961,1756157438256,-1438.04712353,0.00031734,3]
[381369962,1756157438265,-247.0,0.00031734,3]
[381369963,1756157438275,-248.0,0.00031734,2]
[381369964,1756157438284,-476.9093245,0.00031734,2]
[381369966,1756157438294,-142.14610839,0.00031734,2]
[381369967,1756157438305,-357.85389161,0.00031734,2]
[381369968,1756157438315,-500.0,0.00031734,2]
[381369969,1756157438324,-500.0,0.00031734,2]
[381369970,1756157438334,-500.0,0.00031734,2]
[381369971,1756157438343,-500.0,0.00031734,2]
[381369972,1756157438352,-500.0,0.00031734,2]
[381369974,1756157438361,-500.0,0.00031734,2]
[381369975,1756157438370,-196.20010148,0.00031734,2]
[381369976,1756157438379,-277.3007684,0.00031734,2]
[381369977,1756157438389,-257.33129645,0.00031734,2]
[381369978,1756157438399,-457.28939756,0.00031734,2]
[381369980,1756157438407,-500.0,0.00031734,2]
[381369982,1756157438416,-500.0,0.00031734,2]
[381369984,1756157438425,-500.0,0.00031734,2]
[381369985,1756157438434,-481.76687335,0.00031735,2]
[381369986,1756157438443,-1304353.10978989,0.00031735,20]
[381369987,1756157438452,-5978.59844974,0.00031735,7]
[381369988,1756157438461,-576.97797581,0.00031735,5]
[381369989,1756157438470,-81437.96957348,0.00031735,2]
[381369990,1756157438479,-1573.9008106,0.00031735,14]
[381369991,1756157438488,-12701.40788335,0.00031735,2]
[381369992,1756157438498,-216.04034502,0.00031735,2]
[381369993,1756157438507,-631.77,0.000318,7]
[381369994,1756157438516,-3112.21,0.000318,7]
[381369995,1756157438526,-18878.82,0.000318,2]
[381369996,1756157438535,-161.0,0.00031984,120]
[381369997,1756157438546,-51115.67970163,0.0003199,2]
[381369998,1756157438555,-331.0,0.00032253,7]
[381369999,1756157438564,-331.0,0.00032277,7]
[381370000,1756157438575,-331.0,0.00032324,7]
[381370001,1756157438584,-300.0,0.00032369,20]
[381370002,1756157438594,-300.0,0.00032369,20]
[381370003,1756157438603,-300.0,0.00032369,20]
[381370004,1756157438613,-300.0,0.00032369,20]
[381370005,1756157438622,-300.0,0.00032369,20]
[381370006,1756157438632,-300.0,0.00032369,20]
[381370007,1756157438642,-300.0,0.00032369,20]
[381370008,1756157438651,-300.0,0.00032369,20]
[381370009,1756157438660,-300.0,0.00032369,20]
[381370010,1756157438670,-50000.0,0.00032369,2]
[381370011,1756157438679,-160.0,0.000324,2]
[381370012,1756157438688,-331.0,0.00032442,2]
[381370013,1756157438697,-207.76000732,0.00032767,2]
[381370014,1756157438707,-260.0,0.00032948,2]
[381370015,1756157438716,-932.98,0.00033095,3]
[381370016,1756157438725,-466.48,0.00033095,3]
[381370017,1756157438734,-331.0,0.00033158,2]
[381370018,1756157438744,-331.0,0.00033216,2]
[381370019,1756157438754,-858.00401683,0.00033246,2]
[381370020,1756157438763,-331.0,0.00033344,7]
[381370021,1756157438772,-360.0,0.00033496,2]
[381370022,1756157438781,-161.0,0.00033583,120]
[381370023,1756157438791,-331.0,0.00033592,2]
[381370024,1756157438801,-81772.4864081,0.00033838,2]
[381370025,1756157438810,-331.0,0.00033918,2]
[381370026,1756157438820,-331.0,0.00033928,2]
[381370027,1756157438829,-331.0,0.0003402,7]
[381370028,1756157438838,-460.0,0.00034044,2]
[381370029,1756157438848,-2240.0,0.00034283,3]
[381370030,1756157438858,-331.0,0.00034328,2]
[381370031,1756157438867,-331.0,0.00034394,7]
[381370032,1756157438877,-331.0,0.00034418,2]
[381370033,1756157438886,-331.0,0.00034482,2]
[381370034,1756157438895,-631.77,0.000345,7]
[381370035,1756157438905,-3112.21,0.000345,7]
[381370036,1756157438915,-18878.82,0.000345,14]
[381370037,1756157438924,-480.0,0.00034592,2]
[381370038,1756157438933,-331.0,0.00034748,2]
[381370039,1756157438942,-858.00401683,0.00034857,2]
[381370040,1756157438951,-331.0,0.00034959,2]
[381370041,1756157438960,-331.0,0.00034964,2]
[381370042,1756157438970,-161.0,0.00035262,120]
[381370043,1756157438979,-250.0,0.00035287,2]
[381370044,1756157438988,-500.0,0.00035616,7]
[381370045,1756157439001,-529.29072822,0.00035616,7]
[381370046,1756157439011,-232.4766599,0.00035616,7]
[381370047,1756157439020,-500.0,0.00035616,7]
[381370048,1756157439030,-500.0,0.00035616,7]
[381370049,1756157439041,-500.0,0.00035616,7]
[381370050,1756157439050,-500.0,0.00035616,7]
[381370051,1756157439059,-500.0,0.00035616,7]
[381370052,1756157439069,-500.0,0.00035616,7]
[381370053,1756157439080,-500.0,0.00035616,7]
[381370054,1756157439091,-500.0,0.00035616,7]
[381370055,1756157439100,-500.0,0.00035616,7]
[381370056,1756157439109,-500.0,0.00035616,7]
[381370057,1756157439118,-500.0,0.00035616,7]
[381370058,1756157439128,-500.65539908,0.00035616,7]
[381370059,1756157439137,-500.0,0.00035616,7]
[381370060,1756157439146,-350.0,0.00035728,2]
[381370061,1756157439155,-500.0,0.0003589,7]
[381370062,1756157439164,-500.0,0.00036164,7]
[381370063,1756157439174,-500.0,0.00036438,7]
[381370064,1756157439183,-858.00401683,0.00036468,2]
[381370065,1756157439192,-500.0,0.00036712,7]
[381370066,1756157439201,-500.0,0.00036986,7]
[381370067,1756157439210,-161.0,0.00037026,120]
[381370068,1756157439219,-1622.0,0.00037036,3]
[381370069,1756157439228,-500.0,0.0003726,7]
[381370070,1756157439238,-362.92583263,0.00037534,7]
[381370071,1756157439248,-159.0,0.000378,120]
[381370072,1756157439257,-12105.98773934,0.00037998,2]
[381370073,1756157439266,-4781.0,0.00038,120]
[381370074,1756157439276,-166.0,0.00038,30]
[381370075,1756157439285,-858.00401683,0.0003808,2]
[381370076,1756157439296,-500.0,0.00038276,5]
[381370077,1756157439305,-547.76989051,0.00038276,5]
[381370078,1756157439314,-500.0,0.00038276,5]
[381370079,1756157439323,-500.0,0.00038276,5]
[381370080,1756157439333,-451.01588107,0.00038276,5]
[381370081,1756157439343,-700.0,0.00038355,7]
[381370082,1756157439352,-1000.0,0.00038824,5]
[381370083,1756157439361,-1000.0,0.00038824,5]
[381370084,1756157439371,-160.0,0.00038841,2]
[381370085,1756157439381,-217.12848614,0.00038841,2]
[381370086,1756157439390,-160.0,0.00038841,2]
[381370087,1756157439399,-160.0,0.00038841,2]
[381370088,1756157439409,-160.0,0.00038841,2]
[381370089,1756157439418,-160.0,0.00038841,2]
[381370090,1756157439427,-160.0,0.00038841,2]